bitfinex/quotes_ETHUSD_20241109
["timestamp","ask_amount","ask_price","bid_price","bid_amount"]
[1731154993244,4.48691813,3039.6,3037.1,0.8219]
[1731154993414,4.48691813,3039.6,3037.2,0.88772381]
[1731154993615,4.48691813,3039.6,3037.5,0.7527]
[1731154994151,0.67757157,3039.6,3037.8,0.7627]
[1731154994514,0.67757157,3039.6,3037.4,0.01]
[1731154994515,0.67757157,3039.6,3038.0,0.7527]
[1731154995719,0.67757157,3039.8,3038.0,0.7527]
[1731154996032,0.67757157,3039.8,3038.2,0.7527]
[1731154996033,0.55,3039.7,3038.2,0.7527]
[1731154996229,0.67757157,3039.8,3038.4,0.7527]
[1731154996449,0.98247878,3039.8,3038.5,0.7527]
[1731154997944,0.55,3039.7,3038.5,0.7527]
[1731154998257,0.55,3039.7,3038.6,0.06581091]
[1731154998415,0.67757157,3039.8,3038.1,0.7527]
[1731154998619,0.67757157,3039.8,3038.3,0.7527]
[1731154999433,0.67757157,3039.8,3038.4,0.10159004]
[1731154999634,0.67757157,3039.8,3038.0,0.01]
[1731154999635,0.77355211,3040.5,3038.5,0.7527]
[1731154999937,0.8264,3040.3,3038.5,0.7527]
[1731155000164,0.55,3040.2,3038.5,0.7527]
[1731155001730,0.55,3039.8,3038.5,0.7527]
[1731155002361,0.55,3039.6,3038.5,0.7527]
[1731155002734,0.55,3039.8,3038.5,0.7527]
[1731155004561,0.55,3040.0,3038.5,0.7527]
[1731155005179,0.7579,3039.8,3038.5,0.7527]
[1731155005476,0.55,3039.7,3038.5,0.7527]
[1731155007433,1.22757157,3039.7,3038.5,0.7527]
[1731155007761,0.55,3039.4,3038.5,0.7527]
[1731155008135,0.67757157,3039.3,3038.5,0.7527]
[1731155008459,0.55,3039.2,3038.5,0.7527]
[1731155009655,1.22757157,3039.2,3038.5,0.7527]
[1731155010752,0.55,3039.0,3038.5,0.7527]
[1731155011350,0.67757157,3039.5,3038.5,0.7527]
[1731155011740,0.67757157,3039.6,3038.5,0.7527]
[1731155012075,0.67757157,3039.7,3038.5,0.7527]
[1731155012376,1.10836157,3039.9,3038.5,0.7527]
[1731155012585,0.43079,3039.9,3038.5,0.7527]
[1731155012740,1.32127892,3040.1,3038.5,0.7527]
[1731155013261,0.67757157,3040.0,3038.5,0.7527]
[1731155013461,0.67757157,3039.9,3038.5,0.7527]
[1731155013894,0.55,3039.8,3038.5,0.7527]
[1731155014481,1.32127892,3040.1,3038.5,0.7527]
[1731155014683,0.87745662,3040.0,3038.5,0.7527]
[1731155015051,0.19988505,3040.0,3038.5,0.7527]
[1731155015565,0.67757157,3039.9,3038.5,0.7527]
[1731155016082,0.55,3039.8,3038.5,0.7527]
[1731155020049,0.55,3039.9,3038.5,0.7527]
[1731155020284,0.87745662,3040.0,3038.5,0.7527]
[1731155020583,4.32249941,3040.2,3038.5,0.7527]
[1731155020879,3.64492784,3040.2,3038.5,0.7527]
[1731155021080,4.32249941,3040.2,3038.5,0.7527]
[1731155021656,0.55,3040.1,3038.5,0.7527]
[1731155021859,0.55,3039.9,3038.5,0.7527]
[1731155022469,1.22757157,3039.9,3038.5,0.7527]
[1731155022808,2.01287157,3039.9,3038.5,0.7527]
[1731155022996,0.55,3039.7,3038.5,0.7527]
[1731155023302,1.22757157,3039.7,3038.5,0.7527]
[1731155023498,0.55,3039.5,3038.5,0.7527]
[1731155024206,3.0,3039.4,3038.5,0.7527]
[1731155024412,0.55,3039.5,3038.5,0.7527]
[1731155024585,0.67757157,3039.4,3038.5,0.7527]
[1731155024784,0.55,3039.3,3038.5,0.7527]
[1731155025477,1.22757157,3039.4,3038.5,0.7527]
[1731155025673,0.55,3039.2,3038.5,0.7527]
[1731155026969,3.67757157,3039.5,3038.5,0.7527]
[1731155026970,0.55,3039.4,3038.5,0.7527]
[1731155027493,1.22757157,3039.4,3038.5,0.7527]
[1731155028511,0.67757157,3039.2,3038.5,0.7527]
[1731155029105,0.55,3039.1,3038.5,0.7527]
[1731155029497,0.67757157,3039.2,3038.5,0.7527]
[1731155029695,0.67757157,3039.3,3038.5,0.7527]
[1731155030418,0.67757157,3039.2,3038.5,0.7527]
[1731155030911,0.67757157,3039.3,3038.5,0.7527]
[1731155031129,0.67757157,3039.4,3038.5,0.7527]
[1731155031617,0.67757157,3039.1,3038.5,0.7527]
[1731155031776,0.67757157,3039.0,3038.5,0.7527]
[1731155032177,0.67757157,3039.1,3038.5,0.7527]
[1731155032777,0.67757157,3039.0,3038.5,0.7527]
[1731155034277,0.67757157,3039.1,3038.5,0.7527]
[1731155034703,3.0,3039.3,3038.5,0.7527]
[1731155034704,0.67757157,3039.3,3038.5,0.7527]
[1731155035521,0.67757157,3039.4,3038.5,0.7527]
[1731155036090,0.67757157,3039.5,3038.5,0.7527]
[1731155036705,0.67757157,3039.4,3038.5,0.7527]
[1731155037415,0.67757157,3039.5,3038.5,0.7527]
[1731155037789,1.22757157,3039.4,3038.5,0.7527]
[1731155037989,0.67757157,3039.2,3038.5,0.7527]
[1731155038827,0.67757157,3039.1,3038.5,0.7527]
[1731155039525,0.67757157,3039.0,3038.5,0.7527]
[1731155039922,0.67757157,3038.9,3038.5,0.7527]
[1731155040543,0.67757157,3039.0,3038.5,0.7527]
[1731155040703,0.67757157,3039.1,3038.5,0.7527]
[1731155041229,4.01635736,3039.3,3038.5,0.7527]
[1731155041230,0.67757157,3039.2,3038.5,0.7527]
[1731155042144,0.67757157,3039.3,3038.5,0.7527]
[1731155042493,0.67757157,3039.4,3038.5,0.7527]
[1731155042853,0.67757157,3039.5,3038.5,0.7527]
[1731155043240,0.67757157,3039.4,3038.5,0.7527]
[1731155044352,0.67757157,3039.3,3038.5,0.7527]
[1731155044642,0.67757157,3039.2,3038.5,0.7527]
[1731155045541,0.67757157,3039.1,3038.5,0.7527]
[1731155045919,0.67757157,3039.2,3038.5,0.7527]
[1731155046804,0.67757157,3039.3,3038.6,0.7934]
[1731155048531,0.67757157,3039.2,3038.6,0.7934]
[1731155048840,0.67757157,3039.3,3038.6,0.7934]
[1731155049044,0.67757157,3039.2,3038.6,0.7934]
[1731155049243,0.67757157,3039.3,3038.6,0.7934]
[1731155051423,0.67757157,3039.2,3038.6,0.7934]
[1731155053872,1.01635736,3039.3,3038.6,0.7934]
[1731155053873,0.67757157,3039.3,3038.6,0.7934]
[1731155054365,0.67757157,3039.5,3038.6,0.7934]
[1731155055427,0.67757157,3039.7,3038.8,0.7934]
[1731155055632,4.01635736,3039.8,3038.8,0.7934]
[1731155055633,0.67757157,3039.6,3038.8,0.7934]
[1731155057033,1.3426,3040.3,3038.8,0.7934]
[1731155057232,0.55,3040.1,3038.8,0.7934]
[1731155057467,1.3426,3040.3,3038.8,0.7934]
[1731155057674,0.68339012,3039.3,3038.8,0.7934]
[1731155070187,0.68339012,3039.3,3038.9,0.06580332]
[1731155070491,0.68339012,3039.3,3039.0,0.7761]
[1731155071058,0.68339012,3039.7,3039.0,0.7761]
[1731155071757,0.68339012,3039.7,3039.1,0.06579944]
[1731155071988,0.68339012,3039.7,3039.3,0.7761]
[1731155072192,0.68339012,3039.7,3039.0,0.7761]
[1731155072596,0.68339012,3039.7,3039.2,0.7761]
[1731155072954,0.68339012,3039.7,3039.4,0.7761]
[1731155073855,0.68339012,3039.7,3038.9,0.02]
[1731155073856,0.68339012,3039.7,3039.6,0.7761]
[1731155074058,1.02508518,3039.8,3039.6,0.7761]
[1731155074277,1.02508518,3039.8,3039.7,0.7761]
[1731155074673,1.02508518,3039.8,3039.7,0.8760641]
[1731155076077,4.02508518,3040.9,3039.7,0.8760641]
[1731155076421,0.7771,3040.7,3039.7,0.7761]
[1731155077817,0.7771,3040.7,3039.8,0.06578682]
[1731155078181,0.7771,3040.7,3039.7,0.7761]
[1731155078814,0.7771,3040.7,3039.9,0.7761]
[1731155079523,1.02508518,3040.9,3039.9,0.7761]
[1731155084190,0.68185421,3040.7,3039.9,0.7761]
[1731155086587,1.02508518,3040.8,3039.9,0.7761]
[1731155086588,0.68185421,3040.8,3039.9,0.7761]
[1731155086989,0.68185421,3040.7,3039.9,0.7761]
[1731155088414,0.68185421,3040.8,3039.9,0.7761]
[1731155088715,0.68185421,3040.9,3039.9,0.7761]
[1731155089112,0.68185421,3040.8,3039.9,0.7761]
[1731155089516,0.68185421,3040.9,3039.9,0.7761]
[1731155090617,0.68185421,3041.0,3039.9,0.7761]
[1731155093424,0.68185421,3040.9,3039.9,0.7761]
[1731155093648,0.68185421,3041.0,3039.9,0.7761]
[1731155094791,0.68185421,3040.9,3039.9,0.7761]
[1731155094995,0.68185421,3041.0,3039.9,0.7761]
[1731155095496,0.68185421,3040.9,3039.9,0.7761]
[1731155095916,0.68185421,3041.0,3039.9,0.7761]
[1731155096727,0.68185421,3041.1,3039.9,0.7761]
[1731155097498,0.68185421,3041.0,3039.9,0.7761]
[1731155097794,0.68185421,3041.1,3039.9,0.7761]
[1731155098527,0.68185421,3041.0,3039.9,0.7761]
[1731155099518,0.68185421,3041.1,3039.9,0.7761]
[1731155099912,0.68185421,3041.0,3039.9,0.7761]
[1731155102124,0.68185421,3041.1,3039.9,0.7761]
[1731155102296,0.68185421,3041.0,3039.9,0.7761]
[1731155102510,4.36678024,3041.3,3039.9,0.7761]
[1731155102511,0.68185421,3041.1,3039.9,0.7761]
[1731155102905,0.68185421,3041.1,3040.0,0.09949764]
[1731155103105,0.68185421,3041.1,3040.1,0.768]
[1731155109537,0.68185421,3041.0,3040.1,0.768]
[1731155111014,0.68185421,3041.1,3040.1,0.768]
[1731155111224,0.68185421,3041.3,3040.3,0.7604]
[1731155111543,0.68185421,3041.3,3039.9,0.01]
[1731155111544,0.68185421,3041.5,3040.4,0.7604]
[1731155111936,0.68185421,3041.4,3040.4,0.7604]
[1731155112327,0.68185421,3041.5,3040.4,0.7604]
[1731155112646,0.68185421,3041.3,3040.4,0.7604]
[1731155113760,0.68185421,3041.4,3040.4,0.7604]
[1731155115957,0.68185421,3041.3,3040.4,0.7604]
[1731155118736,0.68185421,3041.2,3040.4,0.7604]
[1731155119055,0.68185421,3040.7,3039.5,0.7604]
[1731155119256,0.68185421,3040.6,3039.5,0.7604]
[1731155119481,0.68185421,3040.4,3039.5,0.7604]
[1731155120314,0.68185421,3040.3,3039.5,0.7604]
[1731155120820,0.68185421,3040.4,3039.5,0.7604]
[1731155121152,1.02508518,3040.5,3039.5,0.7604]
[1731155121153,0.68185421,3040.3,3039.5,0.7604]
[1731155121511,0.68185421,3040.1,3039.5,0.7604]
[1731155121751,0.68185421,3039.9,3039.5,0.7604]
[1731155122363,0.68185421,3040.2,3039.5,0.7604]
[1731155122524,0.68185421,3040.3,3039.5,0.7604]
[1731155124252,0.68185421,3040.4,3039.5,0.7604]
[1731155124423,0.68185421,3040.4,3039.6,0.06578879]
[1731155124637,0.68185421,3040.4,3039.1,0.7581]
[1731155124948,0.68185421,3040.4,3039.3,0.7581]
[1731155125149,0.68185421,3040.4,3039.4,0.92083879]
[1731155125370,0.68185421,3040.4,3039.4,0.85504995]
[1731155126033,0.68185421,3040.4,3039.4,0.7581]
[1731155126560,0.68185421,3040.4,3039.5,0.09688828]
[1731155126773,0.68185421,3040.4,3039.6,0.7581]
[1731155127144,0.68185421,3040.5,3039.8,0.7581]
[1731155129578,0.68185421,3040.4,3039.8,0.7581]
[1731155129873,1.46465421,3040.3,3039.8,0.7581]
[1731155130044,0.68185421,3040.2,3039.8,0.7581]
[1731155132381,0.68185421,3040.1,3038.9,0.7581]
[1731155132536,1.46465421,3039.8,3038.9,0.7581]
[1731155132737,0.68185421,3039.7,3038.9,0.7581]
[1731155132945,0.68185421,3039.9,3039.1,0.7581]
[1731155133347,0.68185421,3039.8,3039.1,0.7581]
[1731155133746,0.68185421,3039.7,3039.1,0.7581]
[1731155134847,0.68185421,3039.8,3039.1,0.7581]
[1731155135155,0.68185421,3040.2,3039.1,0.7581]
[1731155135580,0.68185421,3040.3,3039.2,0.09692002]
[1731155135781,0.68185421,3040.3,3039.3,0.7581]
[1731155135946,4.02508518,3040.4,3039.3,0.7581]
[1731155135947,0.68185421,3040.2,3039.3,0.7581]
[1731155136636,0.68185421,3040.3,3039.3,0.7581]
[1731155137068,0.68185421,3040.2,3039.3,0.7581]
[1731155138442,0.68185421,3040.1,3039.3,0.7581]
[1731155138643,0.68185421,3040.2,3039.3,0.7581]
[1731155141390,0.68185421,3040.3,3039.5,0.7581]
[1731155141950,1.02508518,3040.4,3039.5,0.7581]
[1731155141951,0.68185421,3040.4,3039.5,0.7581]
[1731155142255,0.68185421,3040.5,3039.5,0.7581]
[1731155142750,0.68185421,3040.6,3039.6,0.7581]
[1731155148489,0.68185421,3040.7,3039.6,0.7581]
[1731155149178,0.68185421,3040.6,3039.6,0.7581]
[1731155150524,0.68185421,3040.7,3039.6,0.7581]
[1731155150902,0.68185421,3040.7,3039.7,0.87374697]
[1731155151213,0.68185421,3040.7,3039.7,0.7772]
[1731155151981,0.68185421,3040.8,3039.7,0.7772]
[1731155152688,0.68185421,3040.9,3039.9,0.7772]
[1731155153014,0.68185421,3041.0,3040.0,0.84297889]
[1731155153575,0.68185421,3041.0,3040.0,0.7772]
[1731155153879,1.23365815,3041.0,3040.0,0.7772]
[1731155154080,0.68185421,3040.9,3040.0,0.7772]
[1731155154815,0.68185421,3040.9,3040.2,0.7772]
[1731155155012,0.68185421,3041.0,3040.2,0.7772]
[1731155155384,0.68185421,3041.1,3040.2,0.7772]
[1731155155789,0.68185421,3041.0,3040.2,0.7772]
[1731155158634,0.68185421,3041.1,3040.2,0.7772]
[1731155159129,4.02508518,3041.3,3040.2,0.7772]
[1731155159130,0.68185421,3041.2,3040.2,0.7772]
[1731155159622,0.68185421,3041.2,3040.3,0.84297523]
[1731155159826,0.68185421,3041.1,3040.3,0.84297523]
[1731155159989,0.68185421,3041.2,3040.3,0.7772]
[1731155160749,0.68185421,3041.1,3040.3,0.7772]
[1731155161252,0.68185421,3041.2,3040.3,0.7772]
[1731155161548,0.68185421,3041.1,3040.3,0.7772]
[1731155161706,0.68185421,3041.2,3040.3,0.7772]
[1731155162399,0.68185421,3041.2,3040.4,0.06577311]
[1731155162627,0.68185421,3041.2,3040.5,0.7772]
[1731155162840,0.68185421,3041.3,3040.5,0.7772]
[1731155163133,0.68185421,3041.2,3040.5,0.7772]
[1731155164912,4.02508518,3041.4,3040.5,0.7772]
[1731155164913,0.68185421,3041.3,3040.5,0.7772]
[1731155165302,0.68185421,3041.3,3040.6,0.09572644]
[1731155165527,0.68185421,3041.3,3040.7,0.7615]
[1731155165933,0.68185421,3041.4,3040.7,0.7615]
[1731155166244,0.68185421,3041.3,3040.7,0.7615]
[1731155166537,0.68185421,3041.4,3040.7,0.7615]
[1731155167538,0.68185421,3041.5,3040.7,0.7615]
[1731155167745,0.68185421,3041.4,3040.7,0.7615]
[1731155167952,0.68185421,3041.5,3040.7,0.7615]
[1731155168216,4.70693939,3041.7,3040.9,0.7615]
[1731155168490,1.36678024,3042.0,3041.1,0.55]
[1731155168491,0.68185421,3041.8,3041.1,0.55]
[1731155168694,0.68185421,3041.9,3041.2,0.7615]
[1731155169070,0.68185421,3041.9,3041.3,0.06575406]
[1731155169267,0.68185421,3042.0,3041.4,0.7615]
[1731155169666,1.02508518,3042.2,3041.4,0.7615]
[1731155169667,0.68185421,3042.1,3041.4,0.7615]
[1731155169886,0.68185421,3042.1,3041.5,0.06575386]
[1731155170191,0.68185421,3042.2,3041.6,0.7615]
[1731155170395,0.68185421,3042.3,3041.6,0.7615]
[1731155170557,0.68185421,3042.6,3041.8,0.7615]
[1731155171356,0.68185421,3042.7,3041.8,0.7615]
[1731155171592,0.68185421,3042.8,3041.8,0.7615]
[1731155172000,0.8202,3042.9,3041.8,0.7615]
[1731155172001,1.50205421,3042.9,3041.8,0.7615]
[1731155172211,1.50205421,3042.9,3042.0,0.7615]
[1731155172512,0.8202,3042.9,3042.0,0.7615]
[1731155173206,0.8202,3042.9,3040.8,0.7615]
[1731155173207,0.8202,3042.8,3040.8,0.7615]
[1731155173418,0.8202,3042.5,3042.1,0.09486255]
[1731155173572,1.50205421,3042.5,3041.6,0.7615]
[1731155173772,4.50205421,3042.5,3041.6,0.7615]
[1731155174083,1.37291394,3042.5,3041.6,0.7615]
[1731155174280,3.8202,3042.7,3041.6,0.7615]
[1731155174473,0.8202,3042.7,3041.6,0.7615]
[1731155174917,1.50205421,3042.7,3041.6,0.7615]
[1731155175204,0.68185421,3042.6,3041.6,0.7615]
[1731155175408,4.50205421,3042.7,3041.6,0.7615]
[1731155175686,0.8202,3042.7,3041.6,0.7615]
[1731155178307,3.68185421,3042.3,3040.6,0.7615]
[1731155178509,1.29089394,3042.2,3040.6,0.7615]
[1731155179024,4.97274815,3042.2,3040.6,0.7615]
[1731155179227,0.8202,3042.1,3040.6,0.7615]
[1731155179637,0.8202,3042.1,3040.8,0.7615]
[1731155181816,3.0,3042.1,3040.8,0.7615]
[1731155182017,0.8202,3041.9,3040.8,0.7615]
[1731155182356,0.68185421,3041.6,3040.4,0.7615]
[1731155182553,1.50205421,3041.5,3040.4,0.7615]
[1731155183207,0.8202,3041.5,3040.4,0.7615]
[1731155183414,1.50205421,3041.5,3040.4,0.7615]
[1731155183650,0.7941,3041.3,3040.4,0.7615]
[1731155183961,0.7941,3041.3,3040.3,0.33931898]
[1731155183962,0.7941,3041.0,3040.3,0.33931898]
[1731155184114,3.68185421,3040.9,3040.3,1.09251898]
[1731155184455,1.47595421,3041.0,3040.3,1.09251898]
[1731155184609,1.34420394,3041.0,3040.3,1.09251898]
[1731155185446,2.02605815,3041.0,3040.3,1.09251898]
[1731155187487,5.02605815,3041.0,3040.3,1.09251898]
[1731155187666,0.68185421,3041.0,3040.3,1.09251898]
[1731155187869,4.47595421,3041.3,3040.4,0.7532]
[1731155188186,1.47595421,3041.3,3040.4,0.7532]
[1731155189245,0.7941,3041.3,3040.4,0.7532]
[1731155189446,1.34420394,3041.3,3040.4,0.7532]
[1731155189754,0.55010394,3041.3,3040.4,0.7532]
[1731155190142,1.23195815,3041.3,3040.4,0.7532]
[1731155191788,0.55010394,3041.3,3040.4,0.7532]
[1731155191939,1.23195815,3041.3,3040.4,0.7532]
[1731155192674,1.10505003,3041.2,3040.4,0.7532]
[1731155192855,0.7941,3041.1,3040.4,0.7532]
[1731155194899,4.47595421,3041.1,3040.4,0.7532]
[1731155196166,1.47595421,3041.1,3040.4,0.7532]
[1731155196366,0.68185421,3041.1,3040.4,0.7532]
[1731155197998,1.24987813,3041.1,3040.4,0.7532]
[1731155198250,1.47595421,3041.0,3040.3,0.33931898]
[1731155198400,0.68185421,3040.7,3040.3,0.33931898]
[1731155198601,0.7941,3040.5,3040.3,0.33931898]
[1731155198904,0.68185421,3040.4,3040.3,0.33931898]
[1731155199060,4.57518912,3040.4,3039.7,0.7532]
[1731155199366,0.68229106,3040.3,3040.1,0.33933028]
[1731155200110,0.68229106,3040.2,3040.1,0.33933028]
[1731155200573,0.68229106,3040.3,3040.1,0.33933028]
[1731155200774,4.355898,3040.3,3040.1,0.33933028]
[1731155201703,0.7941,3040.2,3040.1,0.33933028]
[1731155202709,4.47639106,3040.2,3039.5,0.7532]
[1731155203199,4.47639106,3040.2,3039.7,0.33935771]
[1731155203399,0.61750832,3040.1,3039.7,0.33935771]
[1731155208711,0.7652,3040.0,3039.7,0.33935771]
[1731155209882,0.7652,3040.0,3038.9,0.7587]
[1731155210080,0.7652,3040.0,3039.3,0.33941161]
[1731155212319,0.7652,3039.8,3039.3,0.33941161]
[1731155212504,0.7652,3039.6,3039.3,0.33941161]
[1731155212914,0.7652,3039.6,3039.4,0.09376906]
[1731155213109,0.7652,3039.6,3039.3,0.33941161]
[1731155213702,0.7652,3039.6,3039.4,0.09376906]
[1731155213985,0.7652,3039.6,3039.3,0.33941161]
[1731155214430,0.37652,3039.5,3039.3,0.33941161]
[1731155214602,0.7652,3039.6,3039.3,0.33941161]
[1731155219004,0.7652,3039.8,3039.4,0.7587]
[1731155219394,0.8152,3040.0,3039.5,0.09377089]
[1731155220721,0.8152,3040.0,3039.4,0.7587]
[1731155221038,0.8152,3040.0,3039.3,0.33941161]
[1731155221328,0.18197459,3039.9,3039.3,0.33941161]
[1731155229058,0.18197459,3039.9,3039.4,0.7916]
[1731155229234,0.05,3040.0,3039.4,0.7916]
[1731155235420,0.05,3040.0,3039.5,0.55]
[1731155235662,0.05,3040.0,3039.6,0.7916]
[1731155238651,0.05,3040.0,3039.7,0.55]
[1731155238851,0.05,3040.0,3039.7,0.7916]
[1731155239073,0.05,3040.0,3039.8,0.09276656]
[1731155240781,0.73229106,3040.0,3039.8,0.09276656]
[1731155241075,0.68229106,3039.9,3039.8,0.09276656]
[1731155241274,0.68229106,3039.9,3039.4,1.13093045]
[1731155241475,0.68229106,3039.8,3039.4,1.13093045]
[1731155243139,0.05,3040.0,3039.4,1.13093045]
[1731155245287,0.05,3040.0,3039.6,0.7954]
[1731155245486,0.05,3040.0,3039.6,1.04303305]
[1731155245667,0.05,3040.0,3039.7,0.09255327]
[1731155256504,0.68419626,3039.9,3039.7,0.09255327]
[1731155256679,0.68419626,3039.9,3039.6,1.04303305]
[1731155257375,0.68419626,3039.9,3039.6,0.7954]
[1731155258292,0.68419626,3039.9,3039.5,0.33931132]
[1731155258492,3.68419626,3039.9,3039.5,0.33931132]
[1731155261391,0.68419626,3039.7,3039.5,0.33931132]
[1731155261913,0.68419626,3039.6,3039.5,0.33931132]
[1731155264540,4.02629439,3039.7,3039.5,0.33931132]
[1731155264541,1.02629439,3039.7,3039.5,0.33931132]
[1731155265035,1.02629439,3039.6,3039.5,0.33931132]
[1731155265600,7.20367703,3039.6,3039.5,0.33931132]
[1731155265806,7.20367703,3039.6,3038.9,0.8103]
[1731155266033,0.68508236,3039.0,3038.9,0.8103]
[1731155266609,1.02762354,3039.1,3038.9,0.33903721]
[1731155266814,4.02762354,3039.1,3038.9,0.33903721]
[1731155267124,2.50289302,3039.2,3038.9,0.33903721]
[1731155267125,1.02762354,3039.0,3038.9,0.33903721]
[1731155267526,0.68486055,3039.0,3038.9,0.33903721]
[1731155268447,0.68468612,3039.0,3038.9,0.33903721]
[1731155268614,0.68468612,3039.0,3038.9,1.69933721]
[1731155268821,0.68468612,3039.1,3038.9,1.86927093]
[1731155269146,0.68468612,3039.2,3039.0,0.09303862]
[1731155269444,0.68468612,3039.2,3038.9,1.86927093]
[1731155269904,0.68468612,3039.3,3039.0,0.55]
[1731155270105,0.68468612,3039.4,3039.2,0.55]
[1731155270506,0.68468612,3039.5,3039.2,0.55]
[1731155271239,0.68468612,3039.4,3039.2,0.55]
[1731155271917,0.68468612,3039.4,3039.1,0.8103]
[1731155272233,0.68468612,3039.3,3039.1,0.8103]
[1731155273435,0.68468612,3039.3,3039.0,0.55]
[1731155274410,0.68468612,3039.2,3039.0,0.55]
[1731155275146,0.68468612,3039.3,3039.0,0.55]
[1731155275321,0.68468612,3039.3,3039.0,0.71993372]
[1731155277451,0.68468612,3039.3,3039.0,0.55]
[1731155277653,0.68468612,3039.2,3038.9,0.33903721]
[1731155279044,4.50298612,3039.3,3038.9,0.33903721]
[1731155279423,0.68468612,3039.2,3038.9,0.33903721]
[1731155280536,0.68468612,3039.3,3039.0,0.55]
[1731155281351,0.68468612,3039.3,3039.1,0.8103]
[1731155281951,0.68468612,3039.4,3039.1,0.8103]
[1731155282449,0.68468612,3039.4,3039.2,0.55]
[1731155283815,0.68468612,3039.5,3039.2,0.55]
[1731155285123,4.02762354,3039.7,3039.2,0.55]
[1731155285124,0.68468612,3039.6,3039.3,0.7518]
[1731155285356,0.68468612,3039.7,3039.4,0.55]
[1731155285562,0.68468612,3039.8,3039.6,0.55]
[1731155285922,0.68468612,3039.9,3039.6,0.55]
[1731155286122,0.68468612,3039.9,3039.7,0.7518]
[1731155286421,0.68468612,3039.9,3039.7,0.84447719]
[1731155286622,0.73468612,3040.0,3039.7,0.84447719]
[1731155286854,0.73468612,3040.0,3039.7,0.7518]
[1731155287457,0.73468612,3040.0,3039.8,0.55]
[1731155287875,0.05,3040.0,3039.9,1.3018]
[1731155288081,0.05,3040.0,3039.9,1.48698]
[1731155288429,0.05,3040.0,3039.9,1.57949441]
[1731155289743,0.05,3040.0,3039.9,0.55]
[1731155289944,0.05,3040.0,3039.8,0.55]
[1731155293349,0.04902222,3040.0,3039.8,0.55]
[1731155301681,0.04902222,3040.0,3039.6,0.55]
[1731155306693,0.7822,3039.9,3039.5,0.55]
[1731155307708,0.68468612,3039.8,3039.4,0.34173795]
[1731155307868,0.68468612,3039.7,3039.4,0.34173795]
[1731155308068,0.68468612,3039.6,3039.4,0.34173795]
[1731155308280,0.68468612,3039.7,3039.4,0.34173795]
[1731155310494,0.68468612,3039.7,3039.5,0.55]
[1731155310677,0.73370834,3040.0,3039.5,1.3423]
[1731155311007,0.04902222,3040.0,3039.7,0.55]
[1731155313896,0.04902222,3040.0,3039.9,0.55]
[1731155314100,0.04902222,3040.0,3039.9,1.3695]
[1731155314408,0.04902222,3040.0,3039.9,1.46210293]
[1731155316610,1.51158612,3041.3,3040.3,0.55]
[1731155316773,1.51158612,3041.3,3040.1,0.55]
[1731155316774,1.51158612,3041.3,3040.5,0.8195]
[1731155316977,1.51158612,3041.3,3040.6,0.55]
[1731155317497,0.8269,3041.3,3040.6,0.55]
[1731155317813,0.68468612,3041.4,3040.6,0.55]
[1731155318017,0.68468612,3041.5,3040.6,0.55]
[1731155318196,0.8269,3041.4,3040.6,0.55]
[1731155318512,0.68468612,3041.5,3040.8,0.55]
[1731155318731,0.68468612,3041.7,3041.0,0.55]
[1731155319011,0.68468612,3041.7,3041.2,0.55]
[1731155319410,0.68468612,3041.8,3041.4,0.55]
[1731155319916,0.68468612,3041.8,3041.1,0.55]
[1731155320118,3.68468612,3041.8,3041.1,0.55]
[1731155320615,0.68468612,3041.8,3041.1,0.55]
[1731155320910,3.8269,3041.9,3041.1,0.55]
[1731155320911,4.51158612,3041.9,3041.1,0.55]
[1731155321076,5.20252356,3041.9,3041.1,0.55]
[1731155322537,3.68468612,3041.8,3041.0,0.55]
[1731155322889,0.68468612,3041.7,3041.0,0.55]
[1731155323239,0.8269,3041.6,3040.7,0.55]
[1731155323530,4.51158612,3041.5,3040.4,0.8195]
[1731155323872,1.02762354,3041.6,3039.6,0.52028743]
[1731155323873,0.68468612,3041.2,3040.1,0.7846]
[1731155324130,0.68468612,3041.2,3039.6,0.51028743]
[1731155324131,0.7994,3040.6,3039.6,1.12648363]
[1731155324338,3.68468612,3040.4,3039.6,0.34188363]
[1731155324495,0.7994,3040.2,3039.6,0.34188363]
[1731155324689,4.48408612,3040.2,3039.6,0.34188363]
[1731155325002,1.48408612,3040.2,3039.6,0.34188363]
[1731155325212,3.68468612,3040.1,3039.6,0.34188363]
[1731155326406,0.68468612,3040.0,3039.6,0.34188363]
[1731155326605,1.1348233,3040.0,3039.6,0.34188363]
[1731155328530,0.7994,3039.9,3039.6,0.34188363]
[1731155328704,0.68468612,3039.8,3039.6,0.34188363]
[1731155330106,0.68468612,3039.7,3039.6,0.34188363]
[1731155330704,0.68468612,3039.8,3039.6,0.34188363]
[1731155331124,4.48408612,3039.9,3039.6,0.34188363]
[1731155331597,0.68468612,3039.9,3039.7,0.55]
[1731155331801,0.68468612,3040.2,3039.7,0.55]
[1731155332042,1.48408612,3040.3,3039.7,0.55]
[1731155332245,0.68468612,3040.4,3039.9,0.55]
[1731155332400,1.48408612,3040.5,3039.9,0.55]
[1731155332732,0.68468612,3040.4,3039.7,0.55]
[1731155333043,0.68468612,3040.4,3039.8,0.55]
[1731155333405,1.87227356,3040.5,3039.8,0.55]
[1731155333605,4.87227356,3040.5,3039.8,0.55]
[1731155334303,0.68468612,3040.4,3039.8,0.55]
[1731155334504,3.68468612,3040.4,3039.8,0.55]
[1731155335046,0.68468612,3040.4,3039.8,0.55]
[1731155336641,4.87227356,3040.5,3039.8,0.55]
[1731155337559,0.68468612,3040.4,3039.8,0.55]
[1731155339257,4.87227356,3040.5,3039.8,0.55]
[1731155339463,0.68468612,3040.4,3039.8,0.55]
[1731155340059,4.87227356,3040.5,3039.8,0.55]
[1731155342562,1.48408612,3040.5,3039.8,0.55]
[1731155342765,0.68468612,3040.5,3040.0,0.55]
[1731155343239,0.68468612,3040.9,3040.2,0.55]
[1731155343424,0.68468612,3041.1,3040.3,0.7846]
[1731155343631,1.37016473,3041.4,3040.4,0.55]
[1731155343632,0.68468612,3041.3,3040.4,0.55]
[1731155343838,1.34950259,3041.3,3040.4,0.64205651]
[1731155344166,0.68468612,3041.4,3040.4,0.55]